bitfinex/quotes_SOLUSD_20250106
["timestamp","ask_amount","ask_price","bid_price","bid_amount"]
[1736186841084,2.26,218.54,218.49,8.85012874]
[1736186843213,2.26,218.54,218.5,8.85012874]
[1736186843903,2.26,218.54,218.51,8.85012874]
[1736186844818,2.26,218.57,218.53,8.85012874]
[1736186845298,2.26,218.58,218.52,8.85012874]
[1736186845614,2.26,218.58,218.46,21.6056]
[1736186845615,8.85012874,218.56,218.46,21.6056]
[1736186845790,8.85012874,218.56,218.49,8.85012874]
[1736186846611,8.85012874,218.57,218.5,8.85012874]
[1736186846820,8.85012874,218.57,218.51,8.85012874]
[1736186847002,11.11012874,218.58,218.51,8.85012874]
[1736186847327,2.26,218.58,218.52,8.85012874]
[1736186847823,2.26,218.57,218.54,8.85012874]
[1736186847994,2.26,218.57,218.52,8.85012874]
[1736186848392,2.26,218.57,218.51,8.85012874]
[1736186848700,11.11012874,218.57,218.5,8.85012874]
[1736186849222,11.11012874,218.57,218.46,21.6056]
[1736186849521,11.11012874,218.57,218.5,8.85012874]
[1736186850018,8.85012874,218.57,218.5,8.85012874]
[1736186850316,2.26,218.56,218.51,8.85012874]
[1736186851528,2.26,218.56,218.52,8.85012874]
[1736186851720,2.26,218.56,218.53,8.85012874]
[1736186852047,2.26,218.56,218.54,8.85012874]
[1736186852613,8.85012874,218.61,218.54,8.85012874]
[1736186852833,2.26,218.6,218.57,8.85012874]
[1736186853102,2.26,218.6,218.58,8.85012874]
[1736186853718,2.26,218.63,218.58,8.85012874]
[1736186854138,2.26,218.63,218.6,8.85012874]
[1736186854339,31.15092779,218.68,218.61,8.85012874]
[1736186854507,31.15092779,218.68,218.63,8.85012874]
[1736186854508,22.30079905,218.68,218.63,8.85012874]
[1736186854705,2.26,218.67,218.64,8.85012874]
[1736186856821,24.56079905,218.68,218.64,8.85012874]
[1736186857851,24.56079905,218.68,218.65,8.85012874]
[1736186858248,24.56079905,218.68,218.58,23.902374]
[1736186858249,24.56079905,218.68,218.66,8.85012874]
[1736186858805,24.56079905,218.68,218.65,8.85012874]
[1736186860236,22.30079905,218.68,218.65,8.85012874]
[1736186860751,22.30079905,218.68,218.64,8.85012874]
[1736186861240,22.30079905,218.68,218.65,8.85012874]
[1736186861668,22.30079905,218.68,218.67,8.85012874]
[1736186862794,22.30079905,218.68,218.63,20.0]
[1736186862937,22.30079905,218.68,218.63,28.85012874]
[1736186863132,22.30079905,218.68,218.67,8.85012874]
[1736186865241,22.30079905,218.68,218.63,20.0]
[1736186865559,22.30079905,218.68,218.63,28.85012874]
[1736186865946,22.30079905,218.68,218.64,8.85012874]
[1736186866353,22.30079905,218.68,218.63,20.0]
[1736186866572,22.30079905,218.68,218.63,8.85012874]
[1736186867490,22.30079905,218.68,218.64,8.85012874]
[1736186868985,11.11012874,218.71,218.64,8.85012874]
[1736186869591,2.26,218.71,218.65,8.85012874]
[1736186869785,2.26,218.71,218.66,8.85012874]
[1736186871098,2.26,218.71,218.65,8.85012874]
[1736186873177,11.11012874,218.71,218.64,8.85012874]
[1736186874307,8.85012874,218.7,218.61,20.0]
[1736186874503,8.85012874,218.67,218.6,8.85012874]
[1736186874686,8.85012874,218.64,218.55,16.807729]
[1736186875007,8.85012874,218.68,218.61,8.85012874]
[1736186875513,8.85012874,218.68,218.59,20.0]
[1736186875514,2.26,218.67,218.62,8.85012874]
[1736186877891,2.26,218.67,218.61,8.85012874]
[1736186882812,22.29401703,218.73,218.63,8.85012874]
[1736186883003,2.26,218.72,218.65,8.85012874]
[1736186883312,8.85012874,218.71,218.64,8.85012874]
[1736186884017,11.11012874,218.72,218.65,8.85012874]
[1736186884615,8.85012874,218.7,218.63,8.85012874]
[1736186884801,8.85012874,218.68,218.61,8.85012874]
[1736186885613,23.776884,218.71,218.54,5.69741918]
[1736186885614,8.85012874,218.66,218.59,8.85012874]
[1736186885918,8.85012874,218.67,218.6,8.85012874]
[1736186886215,23.776884,218.71,218.62,8.85012874]
[1736186886216,8.85012874,218.69,218.62,8.85012874]
[1736186886418,8.85012874,218.71,218.64,8.85012874]
[1736186886618,22.54062874,218.72,218.65,8.85012874]
[1736186886812,2.26,218.72,218.66,8.85012874]
[1736186887012,11.11012874,218.72,218.64,8.85012874]
[1736186887320,8.85012874,218.72,218.64,8.85012874]
[1736186887532,2.26,218.71,218.64,8.85012874]
[1736186888395,2.26,218.71,218.65,8.85012874]
[1736186889001,2.26,218.71,218.64,8.85012874]
[1736186889218,2.26,218.7,218.64,8.85012874]
[1736186890021,8.85012874,218.71,218.64,8.85012874]
[1736186890201,2.26,218.69,218.64,8.85012874]
[1736186890718,2.26,218.69,218.63,8.85012874]
[1736186890907,2.26,218.69,218.58,35.214284]
[1736186890908,8.85012874,218.68,218.61,20.0]
[1736186891242,2.26,218.69,218.63,8.85012874]
[1736186891831,2.26,218.69,218.64,8.85012874]
[1736186892631,2.26,218.69,218.63,8.85012874]
[1736186892929,11.11012874,218.69,218.62,8.85012874]
[1736186894009,8.85012874,218.68,218.61,28.85012874]
[1736186894322,11.11012874,218.69,218.62,8.85012874]
[1736186894628,2.26,218.69,218.63,8.85012874]
[1736186894796,2.26,218.69,218.62,8.85012874]
[1736186895324,11.11012874,218.69,218.62,8.85012874]
[1736186895900,8.85012874,218.68,218.61,28.85012874]
[1736186896810,33.72401703,218.73,218.55,19.52199]
[1736186896811,8.85012874,218.66,218.55,19.3965]
[1736186897013,8.85012874,218.65,218.58,8.85012874]
[1736186897212,8.85012874,218.66,218.6,8.85012874]
[1736186897429,2.26,218.67,218.61,8.85012874]
[1736186897927,11.11012874,218.67,218.6,8.85012874]
[1736186898504,2.26,218.67,218.61,8.85012874]
[1736186899648,11.11012874,218.67,218.6,8.85012874]
[1736186900235,8.85012874,218.66,218.59,8.85012874]
[1736186900711,8.85012874,218.66,218.55,1.571]
[1736186900712,8.85012874,218.63,218.55,1.571]
[1736186900917,8.85012874,218.6,218.52,11.4404]
[1736186901111,2.26,218.59,218.53,8.85012874]
[1736186901442,2.26,218.59,218.56,8.85012874]
[1736186901634,2.26,218.59,218.57,8.85012874]
[1736186901818,2.26,218.59,218.58,8.85012874]
[1736186902010,2.26,218.59,218.53,23.902374]
[1736186902011,2.26,218.59,218.57,8.85012874]
[1736186902214,2.26,218.59,218.52,11.4404]
[1736186902412,2.26,218.59,218.56,8.85012874]
[1736186902941,2.26,218.59,218.57,8.85012874]
[1736186903841,2.26,218.59,218.56,8.85012874]
[1736186904840,2.26,218.59,218.55,28.85012874]
[1736186905150,8.85012874,218.61,218.55,20.0]
[1736186905445,8.85012874,218.61,218.55,28.85012874]
[1736186905446,2.26,218.6,218.55,28.85012874]
[1736186905738,2.02049123,218.6,218.55,28.85012874]
[1736186906542,2.02049123,218.6,218.55,20.0]
[1736186907051,2.02049123,218.6,218.5,6.3312]
[1736186907258,8.85012874,218.59,218.52,8.85012874]
[1736186907419,2.02049123,218.6,218.51,28.85012874]
[1736186907420,8.85012874,218.58,218.51,28.85012874]
[1736186907617,8.85012874,218.58,218.52,8.85012874]
[1736186907919,8.85012874,218.58,218.51,28.85012874]
[1736186908134,8.85012874,218.58,218.51,8.85012874]
[1736186908349,8.85012874,218.58,218.51,28.85012874]
[1736186908934,8.85012874,218.56,218.51,20.0]
[1736186909238,2.02049123,218.6,218.51,20.0]
[1736186909239,8.85012874,218.58,218.52,8.85012874]
[1736186909931,2.26,218.57,218.51,28.85012874]
[1736186910821,2.26,218.57,218.52,8.85012874]
[1736186911123,2.26,218.57,218.54,8.85012874]
[1736186911529,2.26,218.57,218.53,8.85012874]
[1736186912652,2.26,218.57,218.52,8.85012874]
[1736186913046,2.26,218.57,218.51,28.85012874]
[1736186913740,11.11012874,218.57,218.51,20.0]
[1736186913921,11.11012874,218.57,218.48,8.85012874]
[1736186913922,8.85012874,218.54,218.48,8.85012874]
[1736186914250,8.85012874,218.54,218.47,8.85012874]
[1736186914430,8.85012874,218.53,218.49,20.0]
[1736186914766,8.85012874,218.54,218.49,20.0]
[1736186915550,8.85012874,218.53,218.46,8.85012874]
[1736186916332,8.85012874,218.53,218.47,8.85012874]
[1736186919364,8.85012874,218.53,218.46,8.85012874]
[1736186921160,8.85012874,218.52,218.45,28.85012874]
[1736186921467,8.85012874,218.51,218.45,28.85012874]
[1736186922755,8.85012874,218.52,218.45,28.85012874]
[1736186924458,8.85012874,218.53,218.46,8.85012874]
[1736186924877,8.85012874,218.54,218.47,8.85012874]
[1736186925055,2.26,218.53,218.49,8.85012874]
[1736186925249,7.905,218.58,218.51,8.85012874]
[1736186925457,2.26,218.57,218.53,8.85012874]
[1736186925768,2.26,218.57,218.52,8.85012874]
[1736186926062,2.26,218.57,218.51,8.85012874]
[1736186926630,2.26,218.56,218.51,8.85012874]
[1736186929866,2.26,218.55,218.51,8.85012874]
[1736186930475,2.26,218.55,218.53,8.85012874]
[1736186930673,22.30808597,218.59,218.53,8.85012874]
[1736186930839,22.30808597,218.59,218.54,8.85012874]
[1736186930840,2.26,218.58,218.54,8.85012874]
[1736186931041,2.26,218.58,218.55,8.85012874]
[1736186931356,22.30808597,218.59,218.47,7.722]
[1736186931357,2.26,218.57,218.54,8.85012874]
[1736186932040,2.26,218.57,218.53,8.85012874]
[1736186932247,2.26,218.56,218.53,8.85012874]
[1736186933184,31.15821471,218.59,218.52,28.85012874]
[1736186933353,2.26,218.55,218.52,28.85012874]
[1736186933555,2.26,218.55,218.53,8.85012874]
[1736186934876,2.26,218.56,218.52,28.85012874]
[1736186935076,2.26,218.56,218.53,8.85012874]
[1736186935665,2.26,218.56,218.52,20.0]
[1736186935666,2.26,218.56,218.54,8.85012874]
[1736186936161,24.56808597,218.59,218.55,8.85012874]
[1736186936361,24.56808597,218.59,218.57,8.85012874]
[1736186936559,22.30808597,218.59,218.58,8.85012874]
[1736186936974,22.30808597,218.59,218.57,8.85012874]
[1736186937283,22.30808597,218.59,218.58,8.85012874]
[1736186938195,22.30808597,218.59,218.57,8.85012874]
[1736186940896,22.30808597,218.59,218.58,8.85012874]
[1736186942608,2.26,218.63,218.58,8.85012874]
[1736186942816,2.26,218.63,218.59,28.85012874]
[1736186943002,8.85012874,218.67,218.59,28.85012874]
[1736186943203,2.26,218.63,218.59,28.85012874]
[1736186943517,2.26,218.64,218.6,8.85012874]
[1736186945013,2.26,218.66,218.62,8.85012874]
[1736186945394,2.26,218.66,218.61,8.85012874]
[1736186946514,2.26,218.66,218.62,8.85012874]
[1736186946704,2.26,218.66,218.61,8.85012874]
[1736186948221,8.85012874,218.68,218.61,8.85012874]
[1736186948417,2.26,218.67,218.62,8.85012874]
[1736186948601,29.94621703,218.73,218.64,8.85012874]
[1736186948919,29.94621703,218.73,218.68,8.85012874]
[1736186948920,2.26,218.72,218.68,8.85012874]
[1736186949809,2.26,218.72,218.69,8.85012874]
[1736186950000,22.29401703,218.73,218.71,8.85012874]
[1736186950194,22.29401703,218.73,218.72,8.85012874]
[1736186954299,22.29401703,218.73,218.65,11.4336]
[1736186954503,22.29401703,218.73,218.68,8.85012874]
[1736186954719,22.29401703,218.73,218.69,8.85012874]
[1736186955127,22.29401703,218.73,218.72,20.0]
[1736186956337,22.29401703,218.73,218.71,28.85012874]
[1736186956544,22.29401703,218.73,218.72,8.85012874]
[1736186957521,22.29401703,218.73,218.72,28.85012874]
[1736186957910,22.29401703,218.73,218.72,8.85012874]
[1736186958512,22.29401703,218.73,218.72,10.40352874]
[1736186962334,22.29401703,218.73,218.72,30.40352874]
[1736186962629,22.29401703,218.73,218.72,28.85012874]
[1736186968632,8.0545,218.96,218.79,0.25098]
[1736186968930,8.85012874,218.94,218.83,20.0]
[1736186969325,10.3145,218.96,218.88,8.85012874]
[1736186969517,8.85012874,218.95,218.87,8.85012874]
[1736186969719,8.85012874,218.94,218.86,8.85012874]
[1736186969937,8.85012874,218.94,218.87,8.85012874]
[1736186970328,8.85012874,218.95,218.88,8.85012874]
[1736186970527,8.85012874,218.94,218.87,8.85012874]
[1736186970937,10.3145,218.96,218.83,20.0]
[1736186970938,8.85012874,218.93,218.86,8.85012874]
[1736186971126,8.85012874,218.94,218.87,8.85012874]
[1736186971440,8.85012874,218.95,218.88,8.85012874]
[1736186971627,10.3145,218.96,218.88,8.85012874]
[1736186971835,8.85012874,218.95,218.88,8.85012874]
[1736186972222,7.7655,219.01,218.92,8.85012874]
[1736186972422,7.7655,219.01,218.93,8.85012874]
[1736186972423,11.11012874,219.0,218.93,8.85012874]
[1736186972629,8.85012874,218.99,218.92,8.85012874]
[1736186973030,11.11012874,218.99,218.92,8.85012874]
[1736186973243,8.85012874,218.97,218.87,20.0]
[1736186973451,8.85012874,218.95,218.91,20.0]
[1736186973751,23.776884,218.98,218.9,8.85012874]
[1736186973752,8.85012874,218.96,218.9,8.85012874]
[1736186973952,8.85012874,218.97,218.9,8.85012874]
[1736186974156,8.85012874,218.98,218.91,8.85012874]
[1736186974330,8.85012874,218.99,218.92,8.85012874]
[1736186974531,11.11012874,218.99,218.92,8.85012874]
[1736186975053,8.85012874,218.99,218.92,8.85012874]
[1736186975351,11.11012874,218.99,218.92,8.85012874]
[1736186975537,8.85012874,218.97,218.9,8.85012874]
[1736186976152,8.85012874,218.96,218.89,8.85012874]
[1736186976338,8.85012874,218.95,218.91,20.0]
[1736186976650,8.85012874,218.94,218.91,20.0]
[1736186976953,8.85012874,218.92,218.85,8.85012874]
[1736186977245,8.85012874,218.92,218.86,8.85012874]
[1736186978854,8.85012874,218.91,218.85,8.85012874]
[1736186979345,8.85012874,218.91,218.84,28.85012874]
[1736186980366,8.85012874,218.89,218.81,1.6255]
[1736186980531,8.85012874,218.87,218.76,19.1179]
[1736186980730,8.85012874,218.86,218.83,20.0]
[1736186980932,8.85012874,218.85,218.76,13.0461]
[1736186981256,8.85012874,218.86,218.8,8.85012874]
[1736186981564,8.85012874,218.85,218.78,8.85012874]
[1736186981768,8.85012874,218.84,218.77,8.85012874]
[1736186982072,2.26,218.83,218.77,8.85012874]
[1736186982566,2.26,218.83,218.76,8.85012874]
[1736186982567,8.85012874,218.82,218.76,8.85012874]
[1736186982747,8.85012874,218.82,218.72,18.02914124]
[1736186982748,8.85012874,218.81,218.75,8.85012874]
[1736186983066,8.85012874,218.81,218.78,20.0]
[1736186983244,8.85012874,218.81,218.75,8.85012874]
[1736186985061,16.05453951,218.83,218.76,13.79453951]
[1736186985538,13.79453951,218.82,218.75,33.79453951]
[1736186986175,2.26,218.83,218.75,20.0]
[1736186986176,13.79453951,218.79,218.75,20.0]
[1736186986381,13.79453951,218.79,218.72,13.79453951]
[1736186986535,13.79453951,218.78,218.72,13.79453951]
[1736186987068,13.79453951,218.77,218.71,13.79453951]
[1736186987467,13.79453951,218.77,218.7,33.79453951]
[1736186987672,13.79453951,218.77,218.71,13.79453951]
[1736186987872,13.79453951,218.78,218.72,13.79453951]
[1736186988762,13.79453951,218.78,218.71,13.79453951]
[1736186990282,13.79453951,218.78,218.72,13.79453951]
[1736186990487,13.79453951,218.79,218.72,13.79453951]
[1736186990793,37.57142351,218.81,218.74,13.79453951]
[1736186991001,8.0464,218.82,218.76,13.79453951]
[1736186991211,2.24,218.81,218.76,13.79453951]
[1736186992505,8.0464,218.82,218.76,13.79453951]
[1736186992685,2.24,218.81,218.76,13.79453951]
[1736186993701,13.79453951,218.79,218.75,20.0]
[1736186994465,13.79453951,218.77,218.71,13.79453951]
[1736186994667,13.79453951,218.76,218.7,13.79453951]
[1736186994871,13.79453951,218.77,218.73,20.0]
[1736186995597,13.79453951,218.78,218.71,13.79453951]
[1736186996500,13.79453951,218.77,218.7,33.79453951]
[1736186996711,13.79453951,218.78,218.71,13.79453951]
[1736186997199,2.24,218.81,218.75,13.79453951]
[1736186997593,2.24,218.81,218.76,13.79453951]
[1736186998391,13.79453951,218.82,218.76,13.79453951]
[1736186998790,2.24,218.81,218.76,13.79453951]
[1736187001396,2.24,218.8,218.77,13.79453951]
[1736187001743,2.24,218.8,218.76,13.79453951]
[1736187002799,2.24,218.8,218.75,13.79453951]
[1736187003001,2.24,218.8,218.77,20.0]
[1736187004999,2.24,218.8,218.7,8.83282187]
[1736187005000,8.83282187,218.78,218.7,8.83282187]
[1736187005176,8.83282187,218.77,218.71,8.83282187]
[1736187008210,8.83282187,218.78,218.71,8.83282187]
[1736187008409,8.83282187,218.77,218.71,8.83282187]
[1736187008615,8.83282187,218.76,218.7,28.83282187]
[1736187009605,8.83282187,218.74,218.68,8.83282187]
[1736187009808,8.83282187,218.73,218.65,6.2362]
[1736187010130,2.24,218.72,218.66,8.83282187]
[1736187010431,8.83282187,218.71,218.64,10.42812187]
[1736187011138,8.83282187,218.71,218.67,20.0]
[1736187011299,11.07282187,218.72,218.67,20.0]
[1736187011805,2.24,218.72,218.67,8.83282187]
[1736187012003,2.24,218.72,218.68,8.83282187]
[1736187015222,2.24,218.72,218.67,8.83282187]
[1736187015403,8.83282187,218.71,218.67,20.0]
[1736187015598,11.07282187,218.72,218.67,20.0]
[1736187015798,11.07282187,218.72,218.66,8.83282187]
[1736187016116,11.07282187,218.72,218.66,20.0]
[1736187016823,11.07282187,218.72,218.66,28.83282187]
[1736187017011,2.24,218.72,218.66,28.83282187]
[1736187017210,2.24,218.72,218.67,8.83282187]
[1736187018339,2.24,218.72,218.66,28.83282187]
[1736187018504,11.07282187,218.72,218.66,28.83282187]
[1736187018828,11.07282187,218.72,218.66,20.0]
[1736187019005,8.83282187,218.71,218.66,20.0]
[1736187019425,8.83282187,218.7,218.66,20.0]
[1736187019926,8.83282187,218.71,218.66,20.0]
[1736187020109,2.24,218.72,218.66,20.0]
[1736187020322,11.07282187,218.72,218.66,20.0]
[1736187022827,2.24,218.72,218.66,28.83282187]
[1736187023018,2.24,218.72,218.67,8.83282187]
[1736187023221,2.24,218.72,218.68,8.83282187]
[1736187023629,2.24,218.72,218.66,20.0]
[1736187023941,11.07282187,218.72,218.66,20.0]
[1736187025219,2.24,218.72,218.66,20.0]
[1736187026235,2.24,218.72,218.68,8.83282187]
[1736187028158,8.83282187,218.71,218.66,20.0]
[1736187028317,8.83282187,218.71,218.59,3.62141524]
[1736187028318,11.07282187,218.72,218.65,8.83282187]
[1736187028844,2.24,218.72,218.66,8.83282187]
[1736187030939,2.24,218.72,218.67,8.83282187]
[1736187031238,2.24,218.72,218.68,8.83282187]
[1736187031540,2.24,218.72,218.69,8.83282187]
[1736187031840,2.24,218.72,218.68,8.83282187]
[1736187032443,2.24,218.72,218.69,8.83282187]
[1736187032736,31.702984,218.79,218.67,20.0]
[1736187032737,2.24,218.74,218.71,8.83282187]
[1736187032938,8.83282187,218.8,218.73,8.83282187]
[1736187033318,8.83282187,218.8,218.67,33.76363198]
[1736187033319,2.24,218.79,218.74,8.83282187]
[1736187033517,2.24,218.79,218.73,8.83282187]
[1736187034529,2.24,218.79,218.74,8.83282187]
[1736187035517,2.24,218.78,218.75,8.83282187]
[1736187035920,8.83282187,218.82,218.75,8.83282187]
[1736187036122,2.24,218.79,218.75,8.83282187]
[1736187036644,2.24,218.79,218.77,8.83282187]
[1736187037043,22.28165738,218.85,218.78,8.83282187]
[1736187037347,22.28165738,218.85,218.79,8.83282187]
[1736187037348,2.24,218.84,218.79,8.83282187]
[1736187037640,22.28165738,218.85,218.79,8.83282187]
[1736187037840,2.24,218.83,218.79,8.83282187]
[1736187038150,2.24,218.83,218.78,8.83282187]
[1736187039240,2.24,218.83,218.77,28.83282187]
[1736187039620,11.07282187,218.83,218.77,20.0]
[1736187041050,2.24,218.83,218.77,20.0]
[1736187041343,2.24,218.83,218.8,20.0]
[1736187041551,11.07282187,218.83,218.8,20.0]
[1736187041922,2.24,218.83,218.79,20.0]
[1736187043031,2.24,218.83,218.8,20.0]
[1736187043650,2.24,218.83,218.78,8.83282187]
[1736187044147,31.11447925,218.85,218.79,8.83282187]
[1736187044148,22.28165738,218.85,218.79,8.83282187]
[1736187044362,2.24,218.84,218.8,8.83282187]
[1736187045729,2.24,218.84,218.79,8.83282187]
[1736187046142,2.24,218.84,218.8,20.0]
[1736187046338,2.24,218.84,218.8,28.83282187]
[1736187046956,22.28165738,218.85,218.8,28.83282187]
[1736187047255,22.28165738,218.85,218.8,20.0]
[1736187047256,2.24,218.84,218.8,20.0]
[1736187051662,8.83282187,218.86,218.8,20.0]
[1736187051837,11.07282187,218.98,218.88,20.0]
[1736187052030,22.88562018,219.02,218.93,8.83282187]
[1736187052031,8.83282187,219.0,218.93,8.83282187]
[1736187052235,2.24,218.99,218.95,8.83282187]
[1736187052442,10.15120986,219.0,218.95,8.83282187]
[1736187052936,2.24,219.01,218.95,8.83282187]
[1736187053133,2.24,219.01,218.95,13.77044587]
[1736187053372,16.01044587,219.01,218.95,13.77044587]
[1736187053679,13.77044587,219.01,218.94,13.77044587]
[1736187053836,2.24,219.0,218.94,13.77044587]
[1736187054277,2.24,219.0,218.83,1.85136844]
[1736187054278,13.77044587,218.95,218.83,1.85136844]
[1736187054466,13.77044587,218.88,218.83,1.85136844]
[1736187054635,2.24,218.87,218.78,0.12549]
[1736187054836,16.01044587,218.87,218.8,13.77044587]
[1736187055045,13.77044587,218.86,218.82,20.0]
[1736187055245,13.77044587,218.85,218.78,13.77044587]
[1736187056447,13.77044587,218.84,218.8,20.0]
[1736187056643,13.77044587,218.83,218.76,13.77044587]
[1736187056861,13.77044587,218.81,218.75,1.5454]
[1736187057048,13.77044587,218.8,218.73,13.77044587]
[1736187057440,13.77044587,218.8,218.74,13.77044587]
[1736187057646,13.77044587,218.82,218.75,13.77044587]
[1736187057945,2.24,218.84,218.8,13.77044587]
[1736187058132,2.24,218.84,218.78,13.77044587]
[1736187058338,13.77044587,218.83,218.77,13.77044587]
[1736187058560,2.24,218.84,218.78,13.77044587]
[1736187059163,2.24,218.84,218.79,13.77044587]
[1736187059360,2.24,218.84,218.8,13.77044587]
[1736187059560,15.32834587,218.88,218.81,13.77044587]
[1736187059747,2.24,218.87,218.82,13.77044587]
[1736187061172,2.24,218.87,218.83,13.77044587]
[1736187061564,2.24,218.87,218.82,13.77044587]
[1736187062063,2.24,218.87,218.81,13.77044587]
[1736187063061,16.01044587,218.87,218.81,13.77044587]
[1736187063583,2.24,218.87,218.82,13.77044587]
[1736187064387,2.24,218.86,218.82,13.77044587]
[1736187064883,2.24,218.86,218.83,13.77044587]
[1736187065050,1.5163,218.94,218.88,20.0]
[1736187065051,7.9249,218.94,218.88,20.0]
[1736187065245,2.24,218.94,218.9,13.77044587]
[1736187065668,2.24,218.94,218.88,13.77044587]
[1736187066473,16.01044587,218.94,218.87,13.77044587]
[1736187066673,13.77044587,218.92,218.86,20.0]
[1736187066850,13.77044587,218.91,218.87,20.0]
[1736187067789,13.77044587,218.88,218.82,13.77044587]
[1736187067994,13.77044587,218.86,218.8,13.77044587]
[1736187068198,13.77044587,218.86,218.79,13.77044587]
[1736187068649,13.77044587,218.86,218.8,13.77044587]
[1736187069859,13.77044587,218.85,218.79,33.77044587]
[1736187070060,13.77044587,218.86,218.8,13.77044587]
[1736187070359,13.77044587,218.84,218.79,20.0]
[1736187070672,13.77044587,218.8,218.71,13.77044587]
[1736187070869,13.77044587,218.77,218.7,13.77044587]
[1736187071359,13.77044587,218.77,218.74,20.0]
[1736187071554,2.24,218.84,218.69,13.77044587]
[1736187071555,13.77044587,218.76,218.69,13.77044587]
[1736187071869,13.77044587,218.77,218.73,20.0]
[1736187072068,6.5699,218.81,218.73,20.0]
[1736187072069,13.77044587,218.78,218.73,20.0]
[1736187072286,13.77044587,218.76,218.69,13.77044587]
[1736187072478,6.5699,218.81,218.65,6.1196]
[1736187072479,1.5579,218.8,218.72,13.77044587]
[1736187072667,13.77044587,218.78,218.72,13.77044587]
[1736187072853,13.77044587,218.77,218.7,13.77044587]
[1736187073052,2.24,218.76,218.71,13.77044587]
[1736187073673,2.24,218.76,218.7,13.77044587]
[1736187074180,2.24,218.76,218.71,13.77044587]
[1736187074381,16.01044587,218.76,218.7,13.77044587]
[1736187074581,13.77044587,218.75,218.69,33.77044587]
[1736187074787,16.01044587,218.76,218.69,33.77044587]
[1736187075689,13.77044587,218.75,218.69,20.0]
[1736187076391,16.01044587,218.76,218.69,33.77044587]
[1736187077482,16.01044587,218.76,218.7,13.77044587]
[1736187077673,2.24,218.76,218.71,13.77044587]
[1736187078483,16.01044587,218.76,218.69,33.77044587]
[1736187078659,2.24,218.76,218.68,20.0]
[1736187078868,13.77044587,218.71,218.65,13.77044587]
[1736187079309,13.77044587,218.72,218.65,13.77044587]
[1736187079902,13.77044587,218.71,218.65,13.77044587]
[1736187080067,13.77044587,218.7,218.63,13.77044587]
[1736187080466,13.77044587,218.68,218.61,13.77044587]
[1736187080688,16.01044587,218.68,218.61,13.77044587]
[1736187081391,2.24,218.68,218.62,13.77044587]
[1736187082798,16.01044587,218.68,218.61,33.77044587]
[1736187083894,16.01044587,218.68,218.62,13.77044587]
[1736187084094,2.24,218.68,218.62,13.77044587]
[1736187084390,2.24,218.68,218.63,13.77044587]
[1736187086194,2.24,218.68,218.62,13.77044587]
[1736187086394,2.24,218.68,218.63,13.81237418]
[1736187087721,13.81237418,218.67,218.61,20.0]
[1736187087924,13.81237418,218.66,218.61,20.0]
[1736187088225,13.81237418,218.67,218.61,20.0]
[1736187088425,16.05237418,218.68,218.61,33.81237418]
[1736187089318,13.81237418,218.67,218.61,20.0]
[1736187090423,13.81237418,218.67,218.61,33.81237418]
[1736187090723,16.05237418,218.68,218.61,33.81237418]
[1736187090893,2.24,218.68,218.62,13.81237418]
[1736187091318,2.24,218.68,218.63,13.81237418]
[1736187091524,2.24,218.68,218.66,13.81237418]
[1736187092007,6.054,218.72,218.66,13.81237418]
[1736187092209,2.24,218.7,218.66,13.81237418]
[1736187092811,2.24,218.7,218.67,13.81237418]
[1736187093501,2.24,218.7,218.66,13.81237418]
[1736187094021,2.24,218.72,218.69,13.81237418]
[1736187094230,2.24,218.72,218.7,13.81237418]
[1736187094926,2.24,218.72,218.68,13.81237418]
[1736187095329,16.05237418,218.72,218.65,13.81237418]
[1736187096613,2.24,218.72,218.66,13.81237418]
[1736187097212,2.24,218.72,218.68,13.81237418]
[1736187097526,1.5348,218.75,218.69,13.81237418]
[1736187097719,2.24,218.74,218.7,13.81237418]
[1736187098130,2.24,218.74,218.69,13.81237418]
[1736187098604,2.24,218.74,218.68,13.81237418]
[1736187099351,2.24,218.74,218.69,13.81237418]
[1736187099828,2.24,218.74,218.68,13.81237418]
[1736187102207,2.24,218.74,218.69,13.81237418]
[1736187102608,2.24,218.74,218.7,13.81237418]
[1736187103232,2.24,218.74,218.7,8.83376555]
[1736187104925,2.24,218.74,218.66,20.0]
[1736187105132,2.24,218.74,218.68,8.83376555]